Cogmind - Beta 15 @@@ ROGUE MODE // 2025.06.14 @ 19:02:17 // Winter2019/RPGLIKE Player: Jack Result: Destroyed by H-61 Shepherd with Heavy Assault Cannon Performance ------------- Evolutions (3) 1500 Regions Visited (7) 1400 Robots Destroyed (11) 55 Value Destroyed (184) 184 Prototype IDs (23) 460 Alien Tech Used (0) 0 Bonus (800) 800 TOTAL SCORE: 4399 Bonus ------- Entered DSFs 500 Aligned with FarCom 300 Cogmind --------- Core Integrity 0/600 Matter 300/300 Energy 95/100 System Corruption 0% Temperature Cool (0) Movement Core (50) Location -7/DSF Parts ------- > --- POWER (1) -------- (None) > --- PROPULSION (2) --- (None) > --- UTILITY (1) ------ (None) > --- WEAPON (4) ------- Longsword +1 > --- INVENTORY (0) ---- (None) Peak State ------------ > --- POWER ------------ Light Ion Engine > --- PROPULSION ------- Flight Unit Flight Unit > --- UTILITY ---------- (None) > --- WEAPON ----------- Longsword +1 > --- INVENTORY -------- (None) [Rating: 11] Favorites ----------- Power Light Ion Engine Engine Light Ion Engine Propulsion Flight Unit Flight Unit Flight Unit Utility None Weapon Light Assault Rifle Ballistic Gun Light Assault Rifle Ballistic Cannon Light Cannon Slashing Weapon Longsword +1 Build | -11 -10 -10 -10 -9 -8 -7 -7 ------- Run | Yrd Mat Min Exi Min Mat Fac DSF Slots Evolved 4 | 4 . . . . . . . Power . | . . . . . . . . Propulsion 1 | 1 . . . . . . . Utility . | . . . . . . . . Weapon 3 | 3 . . . . . . . Parts Attached 10 | 3 3 2 1 1 . . . Power 2 | . . 1 . 1 . . . Engine 2 | . . 1 . 1 . . . Core . | . . . . . . . . Reactor . | . . . . . . . . Propulsion 2 | . 2 . . . . . . Treads . | . . . . . . . . Leg . | . . . . . . . . Wheel . | . . . . . . . . Hover . | . . . . . . . . Flight 2 | . 2 . . . . . . Utility . | . . . . . . . . Device . | . . . . . . . . Storage . | . . . . . . . . Processor . | . . . . . . . . Hackware . | . . . . . . . . Protection . | . . . . . . . . Artifact . | . . . . . . . . Weapon 6 | 3 1 1 1 . . . . Energy Gun . | . . . . . . . . Energy Cannon . | . . . . . . . . Ballistic Gun 4 | 3 . 1 . . . . . Ballistic Cannon 1 | . 1 . . . . . . Launcher . | . . . . . . . . Special Weapon . | . . . . . . . . Impact Weapon . | . . . . . . . . Slashing Weapon 1 | . . . 1 . . . . Piercing Weapon . | . . . . . . . . Special Melee Weapon . | . . . . . . . . Unidentified Prototypes . | . . . . . . . . Parts Lost 3 | . . . . . . . 3 Power 1 | . . . . . . . 1 Propulsion 2 | . . . . . . . 2 Utility . | . . . . . . . . Weapon . | . . . . . . . . Highest Loss Streak 3 | . . . . . . . 3 To Critical Strikes . | . . . . . . . . Average Backups . | . . . . . . . . Power . | . . . . . . . . Propulsion . | . . . . . . . . Utility . | . . . . . . . . Weapon . | . . . . . . . . Tool/Special . | . . . . . . . . Unused Backups . | . . . . . . . . Power . | . . . . . . . . Propulsion . | . . . . . . . . Utility . | . . . . . . . . Weapon . | . . . . . . . . Tool/Special . | . . . . . . . . Average Slot Usage (%) 66 | . 57 83 72 50 50 50 40 Engine 9 | . . 10 12 12 12 12 10 Flight 23 | . 20 25 25 25 25 25 17 Ballistic Gun 29 | . 37 48 30 . . . . Slashing Weapon 4 | . . . 4 12 12 12 12 Peak Build Rating 11 | 3 6 7 11 11 11 11 11 Average Rating 7 | 2 4 6 8 11 11 11 9 On Entrance 7 | . 3 5 7 11 11 11 11 Naked Turns . | . . . . . . . . Heaviest Build 7 | 3 6 7 7 6 6 6 6 Greatest Support 13 | 8 13 13 13 13 13 13 13 Greatest Overweight (x) . | . . . . . . . . Average Overweight (x) . | . . . . . . . . Largest Inventory Capacity . | . . . . . . . . Average Capacity . | . . . . . . . . Most Carried . | . . . . . . . . Average Carried . | . . . . . . . . Final Capacity . | . . . . . . . . Final Carried . | . . . . . . . . Class Distribution -------------------- 67% | Gunner 23% | Hacker-Mutant 9% | Mutant Dominant Class ---------------- Gunner | -10/Materials Gunner | -10/Mines Gunner | -10/Exiles Mutant | -9/Mines Hacker-Mutant | -8/Materials Hacker-Mutant | -7/Factory Hacker-Mutant | -7/DSF Resources | -11 -10 -10 -10 -9 -8 -7 -7 ----------- Run | Yrd Mat Min Exi Min Mat Fac DSF Matter Collected 399 | 149 . 114 . 72 . 61 3 Remotely . | . . . . . . . . Salvage Created 205 | . . 94 . 51 60 . . Parts 24 | . . 14 . 3 7 . . Haulers Intercepted . | . . . . . . . . Recyclers Shooed . | . . . . . . . . Parts Field Recycled . | . . . . . . . . Retrieved Matter . | . . . . . . . . Parts Self-Destructed . | . . . . . . . . Prevented . | . . . . . . . . Kills | -11 -10 -10 -10 -9 -8 -7 -7 ------- Run | Yrd Mat Min Exi Min Mat Fac DSF Combat Hostiles Destroyed 11 | . . 6 . 3 2 . . Melee 5 | . . . . 3 2 . . Guns 6 | . . 6 . . . . . Classes Destroyed 2 | . . 1 . . 1 . . Swarmer 9 | . . 6 . 3 . . . Grunt 2 | . . . . . 2 . . Best Kill Streak 3 | . . 3 . 3 2 . . Combat Bots Only 3 | . . 3 . 3 2 . . Max Kills in Single Turn 1 | . . 1 . 1 1 . . Gunslinging . | . . . . . . . . Exploded . | . . . . . . . . Melee 1 | . . . . 1 1 . . Uniques/NPCs Destroyed . | . . . . . . . . Combat | -11 -10 -10 -10 -9 -8 -7 -7 -------- Run | Yrd Mat Min Exi Min Mat Fac DSF Hostile Shots Fired 65 | . . 24 . 8 4 . 29 Missed 22 | . . 9 . 3 1 . 9 Hits 43 | . . 15 . 5 3 . 20 Projectile 43 | . . 15 . 5 3 . 20 Critical Strikes 1 | . . . . . . . 1 Damage Taken 887 | . . 117 . 47 41 . 682 Core 766 | . . 89 . 41 32 . 604 Absorbed by Shields . | . . . . . . . . Redirected to Core 452 | . . 81 . 21 32 . 318 Core Remaining (%) 94 | 100 . . . 85 97 . . Volleys Fired 15 | . . 15 . . . . . Largest 4 | . . 4 . . . . . Hottest 80 | . . 80 . . . . . Shots Fired 56 | . . 56 . . . . . Gun 56 | . . 56 . . . . . Cannon . | . . . . . . . . Launcher . | . . . . . . . . Special . | . . . . . . . . Kinetic 56 | . . 56 . . . . . Thermal . | . . . . . . . . Explosive . | . . . . . . . . Electromagnetic . | . . . . . . . . Robot Hit Streak 6 | . . 6 . . . . . Robot Miss Streak 13 | . . 13 . . . . . Penetration Max . | . . . . . . . . Secondary Targets 1 | . . 1 . . . . . Max Gunslinging Chain 1 | . . 1 . . . . . Shots Hit Robots 34 | . . 15 . 4 3 . 12 Core Hits 13 | . . 9 . 1 2 . 1 Critical Kills . | . . . . . . . . Critical Parts Destroyed . | . . . . . . . . Critical Strikes . | . . . . . . . . Melee Attacks 22 | . . . 1 5 4 . 12 Impact . | . . . . . . . . Slashing 22 | . . . 1 5 4 . 12 Piercing . | . . . . . . . . Sneak Attacks 1 | . . . . 1 . . . Combat Hostiles . | . . . . . . . . Follow-up Attacks . | . . . . . . . . Damage Inflicted 771 | . . 115 . 216 144 . 296 Guns 115 | . . 115 . . . . . Cannons . | . . . . . . . . Explosions . | . . . . . . . . Melee 656 | . . . . 216 144 . 296 Ramming . | . . . . . . . . Kinetic 115 | . . 115 . . . . . Thermal . | . . . . . . . . Explosive . | . . . . . . . . Electromagnetic . | . . . . . . . . Impact . | . . . . . . . . Slashing 656 | . . . . 216 144 . 296 Piercing . | . . . . . . . . Highest Corruption . | . . . . . . . . Average Corruption . | . . . . . . . . Corruption Purged . | . . . . . . . . Corruption Blocked . | . . . . . . . . Overload Shots . | . . . . . . . . Overflow Damage 94 | . . . . 90 4 . . Projectiles . | . . . . . . . . Explosions . | . . . . . . . . Melee 94 | . . . . 90 4 . . Knockbacks . | . . . . . . . . Impact . | . . . . . . . . Kinetic . | . . . . . . . . Secondary . | . . . . . . . . Self-Inflicted Damage . | . . . . . . . . Shots . | . . . . . . . . Rammed . | . . . . . . . . Targets Rammed . | . . . . . . . . Kicked . | . . . . . . . . Crushed . | . . . . . . . . Highest Temperature 284 | . . 284 . . . . . Average Temperature 102 | . . 102 . . . . . Received Heat Transfer 99 | . . . . . 27 . 72 Effects 1 | . . 1 . . . . . Energy Bleed 1 | . . 1 . . . . . Siege Activations . | . . . . . . . . Martial Activations . | . . . . . . . . Shielding Activations . | . . . . . . . . Robots Disrupted . | . . . . . . . . Combat Hostiles . | . . . . . . . . Robots Corrupted . | . . . . . . . . Combat Hostiles . | . . . . . . . . Parts Fried . | . . . . . . . . Impact Corruptions . | . . . . . . . . Robots Melted . | . . . . . . . . Combat Hostiles . | . . . . . . . . Parts Melted . | . . . . . . . . Heat Transferred . | . . . . . . . . Parts Sabotaged . | . . . . . . . . Parts Stolen . | . . . . . . . . Parts Stripped . | . . . . . . . . Power Chain Reactions . | . . . . . . . . Alert | -11 -10 -10 -10 -9 -8 -7 -7 ------- Run | Yrd Mat Min Exi Min Mat Fac DSF Maximum Alert Level . | . . . . . . . . Low Security (%) 100 | 100 100 100 . 100 100 100 100 Level 1 . | . . . . . . . . Level 2 . | . . . . . . . . Level 3 . | . . . . . . . . Level 4 . | . . . . . . . . Level 5 . | . . . . . . . . High Security . | . . . . . . . . Max Security . | . . . . . . . . Peak Influence 95 | . . 95 . 70 59 21 22 Initial 23 | . . . . . 23 21 7 Average 32 | . . 50 . 51 33 20 9 Influence Increases 306 | . . 155 . 70 66 . 15 Destroy 0b10 Robot/C 220 | . . 120 . 60 40 . . Destroy Leader 40 | . . 20 . 10 10 . . Destroy Structure 1 | . . . . . 1 . . Partial Spotted 15 | . . . . . 15 . . Lose Combat Pursuer 30 | . . 15 . . . . 15 Influence Decreases 306 | . . 150 5 10 77 38 26 Entered New Map 74 | . . . 5 . 37 28 4 Time Decay 210 | . . 150 . 10 40 10 . Lost Part 22 | . . . . . . . 22 Squads Dispatched 2 | . . . . . 1 . 1 Investigation 1 | . . . . . 1 . . Extermination . | . . . . . . . . Reinforcement 1 | . . . . . . . 1 Assault . | . . . . . . . . Garrison . | . . . . . . . . Intercept . | . . . . . . . . Searches Triggered . | . . . . . . . . Construction Impeded . | . . . . . . . . Haulers Reinforced . | . . . . . . . . Active Scanning Responses . | . . . . . . . . Cargo Convoy Interrupts . | . . . . . . . . Stealth | -11 -10 -10 -10 -9 -8 -7 -7 --------- Run | Yrd Mat Min Exi Min Mat Fac DSF Distress Signals . | . . . . . . . . Communications Jammed . | . . . . . . . . Distress Signals . | . . . . . . . . Times Spotted 18 | . 1 7 . 3 2 . 5 Peak Tracking Total 9 | . 1 3 9 3 2 . 4 Tactical Retreats 2 | . . 1 . . . . 1 Traps | -11 -10 -10 -10 -9 -8 -7 -7 ------- Run | Yrd Mat Min Exi Min Mat Fac DSF Traps Triggered 1 | . 1 . . . . . . Indirectly . | . . . . . . . . Trap Hack Attempts . | . . . . . . . . Triggered . | . . . . . . . . Disarmed . | . . . . . . . . Reprogrammed . | . . . . . . . . Reused . | . . . . . . . . Traps Extracted . | . . . . . . . . Installed . | . . . . . . . . Triggered . | . . . . . . . . Machines | -11 -10 -10 -10 -9 -8 -7 -7 ---------- Run | Yrd Mat Min Exi Min Mat Fac DSF Machines Disabled 2 | . . . 2 . . . . Max in Single Turn 1 | . . . 1 . . . . Machines Repaired . | . . . . . . . . Machines Dismantled . | . . . . . . . . Machines Sabotaged . | . . . . . . . . Overloaded Fab Kills . | . . . . . . . . Hacking | -11 -10 -10 -10 -9 -8 -7 -7 --------- Run | Yrd Mat Min Exi Min Mat Fac DSF Machines Accessed 4 | . . . 1 . 2 1 . Terminals 3 | . . . . . 2 1 . Fabricators . | . . . . . . . . Repair Stations . | . . . . . . . . Recycling Units . | . . . . . . . . Scanalyzers . | . . . . . . . . Garrison Access . | . . . . . . . . Total Hacks 9 | . . . 1 . 7 1 . Successful 3 | . . . 1 . 1 1 . Failed 5 | . . . . . 5 . . Catastrophic . | . . . . . . . . Database Lockouts 1 | . . . . . 1 . . Manual 8 | . . . 1 . 7 . . Terminals 8 | . . . . . 7 1 . Fabricators . | . . . . . . . . Repair Stations . | . . . . . . . . Recycling Units . | . . . . . . . . Scanalyzers . | . . . . . . . . Garrison Access . | . . . . . . . . Terminal Hacks 3 | . . . 1 . 1 1 . Part Schematic 1 | . . . . . 1 . . Open DSF 1 | . . . . . . 1 . Proto ID Catalog 1 | . . . 1 . . . . Fabricator Hacks . | . . . . . . . . Repair Station Hacks . | . . . . . . . . Recycling Unit Hacks . | . . . . . . . . Scanalyzer . | . . . . . . . . Garrison Access Hacks . | . . . . . . . . Unauthorized Hacks . | . . . . . . . . Terminals . | . . . . . . . . Fabricators . | . . . . . . . . Repair Stations . | . . . . . . . . Recycling Units . | . . . . . . . . Scanalyzers . | . . . . . . . . Garrison Access . | . . . . . . . . Data Cores Recovered . | . . . . . . . . Used . | . . . . . . . . Hacking Detections 2 | . . . . . 2 . . Full Trace Events 2 | . . . . . 2 . . Feedback Events . | . . . . . . . . Feedback Blocked . | . . . . . . . . Robot Schematics Acquired . | . . . . . . . . Robots Built . | . . . . . . . . Authchips . | . . . . . . . . Time . | . . . . . . . . Total Robot Build Rating . | . . . . . . . . Part Schematics Acquired 1 | . . . . . 1 . . Parts Built . | . . . . . . . . Authchips . | . . . . . . . . Time . | . . . . . . . . Total Part Build Rating . | . . . . . . . . Parts Repaired . | . . . . . . . . Time . | . . . . . . . . Parts Recycled . | . . . . . . . . Recycled Matter . | . . . . . . . . Retrieved Matter . | . . . . . . . . Retrieved Components . | . . . . . . . . Parts Scanalyzed . | . . . . . . . . Part Schematics Acquired . | . . . . . . . . Parts Damaged . | . . . . . . . . Bothacking | -11 -10 -10 -10 -9 -8 -7 -7 ------------ Run | Yrd Mat Min Exi Min Mat Fac DSF Used RIF Installer . | . . . . . . . . Robots Hacked . | . . . . . . . . Non-combat . | . . . . . . . . Combat . | . . . . . . . . Robot Hacks Applied . | . . . . . . . . Relay Couplers Released . | . . . . . . . . Fabnet Peak Effective % . | . . . . . . . . Robots Rewired . | . . . . . . . . Allies Hacked . | . . . . . . . . Hacks Repelled . | . . . . . . . . Allies | -11 -10 -10 -10 -9 -8 -7 -7 -------- Run | Yrd Mat Min Exi Min Mat Fac DSF Total Allies 5 | . . 5 . . . . . Largest Group 5 | . . 5 5 . . . . Highest-Rated Group 85 | . . 85 85 . . . . Highest-Rated Ally 31 | . . 31 31 . . . . Total Orders . | . . . . . . . . Ally Attacks 14 | . . . 14 . . . . Total Damage 164 | . . . 164 . . . . Kills 1 | . . . 1 . . . . Allies Corrupted . | . . . . . . . . Allies Melted . | . . . . . . . . Intel | -11 -10 -10 -10 -9 -8 -7 -7 ------- Run | Yrd Mat Min Exi Min Mat Fac DSF Active Infowar (turns) . | . . . . . . . . Robot Analysis Total . | . . . . . . . . Derelict Logs Recovered 2 | . . 1 . 1 . . . Drone Launches . | . . . . . . . . Drone Recoveries . | . . . . . . . . Exploration | -11 -10 -10 -10 -9 -8 -7 -7 ------------- Run | Yrd Mat Min Exi Min Mat Fac DSF Turns Passed 771 | 16 135 326 84 37 95 21 57 Spaces Moved 1251 | 22 266 415 212 60 183 55 38 Core 47 | 22 24 . . . . . 1 Treads . | . . . . . . . . Legs . | . . . . . . . . Wheels . | . . . . . . . . Hover . | . . . . . . . . Flight 1204 | . 242 415 212 60 183 55 37 Fastest Speed 37 | 50 37 37 37 37 37 37 37 Average Speed 37 | 50 38 37 37 37 37 37 38 Slowest Speed 50 | 50 50 37 37 37 37 37 50 Overloaded Moves . | . . . . . . . . Propulsion Burnouts . | . . . . . . . . Robots Hopped 5 | . 2 3 . . . . . Potential Cave-ins . | . . . . . . . . Cave-ins Triggered . | . . . . . . . . Exploration Rate (%) 34 | 3 46 81 62 22 17 2 39 Regions Visited 7 Branch Regions 3 Pre-discovered Areas 2 | . . 1 . 1 . . . Known Exits Taken 1 | . . . . . . 1 . Unknown Exits Taken 6 | 1 1 1 1 1 1 . . Scrap Searched . | . . . . . . . . Spaces Dug 1 | . . . . . 1 . . Terrain Destroyed 1 | . . . . . 1 . . Melee 1 | . . . . . 1 . . Projectile . | . . . . . . . . AOE . | . . . . . . . . Terrain Rammed . | . . . . . . . . Walls Destroyed . | . . . . . . . . Machines Disabled . | . . . . . . . . Actions | -11 -10 -10 -10 -9 -8 -7 -7 --------- Run | Yrd Mat Min Exi Min Mat Fac DSF Total 1489 | 24 294 557 217 69 205 55 68 Wait 182 | . 21 126 . 3 14 1 17 Move 1234 | 21 261 408 211 59 182 54 38 Hop 5 | . 2 3 . . . . . Pick Up . | . . . . . . . . Fast Attach 14 | 3 7 2 1 . . . 1 Attach . | . . . . . . . . Detach . | . . . . . . . . Swap 1 | . . . . 1 . . . Drop 8 | . 3 . 4 1 . . . Fire 15 | . . 15 . . . . . Melee 22 | . . . 1 5 4 . 12 Ram . | . . . . . . . . Kick . | . . . . . . . . Crush . | . . . . . . . . Escape Stasis . | . . . . . . . . Rewire . | . . . . . . . . Trap . | . . . . . . . . Miscellaneous 8 | . . 3 . . 5 . . Route ------- -11/Scrapyard -10/Materials (discovered 2 exits: [*Mat] / [*Min]) -10/Mines (discovered 3 exits: [*Mat] / *Exi / [*Sub]) -10/Exiles -9/Mines -8/Materials -7/Factory -7/DSF History --------- Turn | Location | Event 1 | -11/Scrapyard | Upgraded with Propulsion slot (x1) 1 | -11/Scrapyard | Upgraded with Weapon slot (x3) 7 | -11/Scrapyard | Discovered new exit (range 15) 17 | -11/Scrapyard | Entered Materials 114 | -10/Materials | Discovered new exit (range 5) 146 | -10/Materials | Discovered new exit (range 11) 152 | -10/Materials | Entered Mines 164 | -10/Mines | Met a Derelict bent on vengeance 205 | -10/Mines | Assembled infested the area 256 | -10/Mines | Discovered new exit (range 8) 304 | -10/Mines | Build established: Gunner 384 | -10/Mines | Learned location of Zion (-7) 386 | -10/Mines | Found a damaged Exp. Sensor Array with a note attached 387 | -10/Mines | Discovered new exit (range 5) 395 | -10/Mines | Assisted by bots powering up and referring to "LRC-V3" 397 | -10/Mines | Discovered new exit (range 5) 478 | -10/Mines | Entered Exiles 478 | -10/Exiles | Accompanied by 5 allies 488 | -10/Exiles | Met 8R-AWN 494 | -10/Exiles | Met EX-HEX 505 | -10/Exiles | Met EX-BIN 508 | -10/Exiles | Led the pair of lost Derelicts to a safe place 510 | -10/Exiles | Reached level 2 510 | -10/Exiles | Aligned with FarCom system 511 | -10/Exiles | Given EX-Vault access code 520 | -10/Exiles | Opened EX-Vault 525 | -10/Exiles | Found Longsword +1 534 | -10/Exiles | Warned to stay clear of 0b10 Research branches 544 | -10/Exiles | Met EX-DEC 549 | -10/Exiles | Attacked by the Exiles 559 | -10/Exiles | Discovered new exit (range 10) 562 | -10/Exiles | Left Exiles lab with Longsword +1 562 | -10/Exiles | Entered Mines 578 | -9/Mines | Learned location of Recycling (-9) 582 | -9/Mines | Discovered new exit (range 6) 599 | -9/Mines | Entered Materials 601 | -8/Materials | Reached level 3 631 | -8/Materials | Central database locked down 688 | -8/Materials | Discovered new exit (range 16) 694 | -8/Materials | Entered Factory 696 | -7/Factory | Reached level 4 715 | -7/Factory | Identified exit to DSF 715 | -7/Factory | Entered DSF 717 | -7/DSF | Reached level 5 737 | -7/DSF | Additional patrols routed to DSF 759 | -7/DSF | Core integrity fell below 50% 768 | -7/DSF | Core integrity fell below 20% 772 | -7/DSF | Destroyed by H-61 Shepherd with Heavy Assault Cannon Last Messages --------------- GOAL=ESCAPE Reached level 5. Hostiles detected in DSF, routing additional patrols. Knocked back. H-61 Shepherd calls for reinforcements. ALERT: Hostile activity reported, dispatching reinforcements to area. Longsword +1 blasted off. Knocked back. Acquired Longsword +1. Flight Unit destroyed. Knocked back. Acquired 3 matter. Knocked back. Slug penetrates Wall. Lgt. Ion Engine destroyed. Knocked back. Penetrated by Slug. Knocked back. Flight Unit destroyed. Penetrated by Slug. Map ----- +----------------------------------------------------+ | ???????????????????????????????????????????????? | | ???????????????????????????????????????????????? | | ???????????????????????????????????????????????? | | ???????????????????????????????????????????????? | | ???????????????????????????????????????????????? | | ???????????????????????????????????????????????? | | ???????????????????????????????????????????????? | | ???????????????????????????????????????????????? | | ???????????????????????????????????????????????? | | ???????????????????????????????????????????????? | | ???????????????????????????????????????????????? | | ????????????????????# #??????????????????????? | | ???????????????????? !??????????????????????? | | ???????????????????? !??????????????????????? | | ???????????????????? !??????????????????????? | | ??????????????###???# #???#??????????????????? | | ??????????????#!!!?## ##?==??????????????????? | | ??????????????#!!!## ##=???????????????????? | | ???????????????? ????????? ????????? | | ????????????????? ????????? ????????? | | ?????????????????? ?????????? ????????? | | ???????????????????#a ??????????? !????????? | | ????????????????????# #??????????# !????????? | | ??????????????????### %###????????# ##???????? | | ??????????????????#!! %[[#????????! !#???????? | | ??????????????????#!! [@#????????! !????????? | | ??????????????????#!! %[H#????????! !????????? | | ??????????????????##; ;##???????## ##???????? | | ??????????????????# %!!#????????! !#???????? | | ??????????????????# % !!#????????! !#???????? | | ??????????????????# !!########?# #????????? | | ??????????????????##; % ###!!!#!!### ###??????? | | ??????????????#!!!###g "##!!!#!!## ""###????? | | ???????? gg """""????? | | ???????? ^^ ""##"????? | | ??????????##!!#!!!#!!!!!!!#!!!#!!##"""""#??????? | | ??????????????###?#!!!!!!!#########"""""#??????? | | ??????????????????#########???????##"####??????? | | ???????????????????????????????????#"#?????????? | | ???????????????????????????????????#""?????????? | | ???????????????????????????????????????????????? | | ???????????????????????????????????????????????? | | ???????????????????????????????????????????????? | | ???????????????????????????????????????????????? | | ???????????????????????????????????????????????? | | | | | | | | | | | +----------------------------------------------------+ Best States ------------- Heat Dissipation 25 Energy Generation 10 Energy Capacity 125 Matter Stores 300 Matter Capacity 300 Sight Range 16 Terrain Scan Density 10 Evasion (%) 62 Offensive Hacking 25 Item Schematics ----------------- Katana | -8/Materials | Hacked Robot Schematics ------------------ None Fabricated ------------ Nothing Repaired ---------- Nothing Alien Tech Used ----------------- None Achievements -------------- None Challenges ------------ None RPGLIKE | -11 -10 -10 -10 -9 -8 -7 -7 --------- Run | Yrd Mat Min Exi Min Mat Fac DSF Levels Raised 4 | . . . 1 . 1 1 1 XP Earned 9900 | 3000 . 1200 350 850 1750 1500 1250 XP Spent 6000 | 3000 . . . . 3000 . . Upgrades 10 | 5 . . . . 5 . . Propulsion Slot 1 | 1 . . . . . . . Weapon Slot 3 | 3 . . . . . . . Mass Support 1 | 1 . . . . . . . Hack Attack % 5 | . . . . . 5 . . Protomatter Created 52 | . . 17 . . 35 . . Integrity Restored 154 | . . 49 . . 105 . . Core 147 | . . 42 . . 105 . . Parts 7 | . . 7 . . . . . Protomatter Decayed 233 | . . 179 54 . . . . Game ------ Seed HoverFusionBuckler Manual? 0 Play Time 00:08:18 Cumulative 292.2 hours Start 2025.06.14 @ 18:54:49 End 2025.06.14 @ 19:02:17 Sessions 1 Manual Loads 0 Difficulty Rogue Special Mode Winter2019/RPGLIKE Game No. 289 Rogue 100 Adventurer 177 Explorer 12 Win Type - Total 65 Types 19/1/16/2/12/0/4/5/0/6 Lore% 57 Gallery% 56 Achievement% 72 Wizard Run 0 Options --------- Layout 0 ASCII 0 Keyboard 0 Movement Numpad Keybinds 0 Fullscreen 2 Font 12/Smallcaps Map View 83x54 Zoom Use 0% Tactical HUD 0 Map Filters NONE Filters NONE Steam 1 RUN: a249217d-5fe9-4b44-9758-77a3cf137323